[Event "41st Arco Open 2019"]
[Site "Arco"]
[Date "2019.10.07"]
[Round "4"]
[White "Kuhn, Tobias"]
[Black "Beulertz, Stefan"]
[Result "1-0"]
[ECO "A87"]
[WhiteElo "2234"]
[BlackElo "2035"]
[Annotator "ChessBase"]
[PlyCount "49"]
[EventDate "2019.10.04"]
[EventType "swiss"]
[EventCountry "ITA"]
[SourceTitle "playchess.com"]
[Source "ChessBase"]
[SourceQuality "1"]
[TimeControl "40/5400+30:1800+30"]

1. Nf3 {[%emt 0:00:30]} f5 {[%emt 0:00:30]} 2. g3 {[%emt 0:00:00]} Nf6 {[%emt 0:00:00]} 3. Bg2 {[%emt 0:00:00]} d6 {[%emt 0:01:00]} 4. d4 {[%emt 0:00:30]} g6 5. O-O {[%emt 0:00:30]} Bg7 {[%emt 0:02:00]} 6. b3 {[%emt 0:00:30]} O-O {[%emt 0:00:30]} 7. Bb2 {[%emt 0:00:30]} c6 {[%emt 0:07:30]} 8. c4 {[%emt 0:18:30]} Qc7 {[%emt 0:09:30]} 9. Nbd2 {[%emt 0:00:00]} a5 {[%emt 0:12:30]} 10. Qc2 {[%emt 0:00:00]} Na6 {[%emt 0:01:30]} 11. a3 {[%emt 0:00:00]} Nh5 {[%emt 0:00:30]} 12. e4 {[%emt 0:02:00]} f4 {[%emt 0:03:30]} 13. e5 {[%emt 0:15:30]} Bf5 {[%emt 0:00:00]} 14. Qc3 {[%emt 0:00:30]} dxe5 {[%emt 0:08:00]} 15. Nxe5 {[%emt 0:01:30]} c5 {[%emt 0:00:30]} 16. d5 {[%emt 0:25:30]} Nb8 {[%emt 0:24:30]} 17. Rfe1 {[%emt 0:06:30]} Nd7 {[%emt 0:00:30]} 18. Ndf3 {[%emt 0:00:00]} Bg4 {[%emt 0:00:30]} 19. Qd2 {[%emt 0:00:00]} Bxf3 {[%emt 0:12:27]} 20. Nxf3 {[%emt 0:02:30]} Ndf6 21. Ng5 {[%emt 0:07:19]} fxg3 {[%emt 0:05:03]} 22. fxg3 Bh6 {[%emt 0:00:19]} 23. Bh3 {[%emt 0:05:12]} Nxg3 24. Be5 {[%emt 0:01:32]} Bxg5 {[%emt 0:10:19]} 25. Qxg5 {[%emt 0:00:30]} 1-0

[Event "41st Arco Open 2019"]
[Site "Arco"]
[Date "2019.10.07"]
[Round "4"]
[White "Felgendreher, Heiko"]
[Black "Cardarelli, Angelo"]
[Result "1-0"]
[ECO "B82"]
[WhiteElo "2196"]
[BlackElo "2014"]
[Annotator "ChessBase"]
[PlyCount "135"]
[EventDate "2019.10.04"]
[EventType "swiss"]
[EventCountry "ITA"]
[SourceTitle "playchess.com"]
[Source "ChessBase"]
[SourceQuality "1"]
[TimeControl "40/5400+30:1800+30"]

1. e4 {[%emt 0:00:30]} c5 {[%emt 0:00:30]} 2. Nf3 {[%emt 0:00:00]} e6 {[%emt 0:00:00]} 3. d4 {[%emt 0:00:00]} cxd4 {[%emt 0:00:00]} 4. Nxd4 {[%emt 0:00:00]} a6 {[%emt 0:00:30]} 5. Nc3 {[%emt 0:00:00]} Qc7 {[%emt 0:00:30]} 6. Bd3 {[%emt 0:01:30]} Nf6 {[%emt 0:00:30]} 7. O-O {[%emt 0:08:30]} Be7 {[%emt 0:01:30]} 8. Kh1 {[%emt 0:02:30]} d6 {[%emt 0:00:30]} 9. f4 {[%emt 0:02:30]} Nbd7 {[%emt 0:02:30]} 10. a4 {[%emt 0:00:30]} Nc5 {[%emt 0:06:30]} 11. Bd2 {[%emt 0:06:30]} Bd7 {[%emt 0:11:30]} 12. b4 {[%emt 0:02:30]} Nxd3 {[%emt 0:04:30]} 13. cxd3 {[%emt 0:00:30]} b6 {[%emt 0:22:30]} 14. Qe2 {[%emt 0:07:30]} g6 {[%emt 0:06:30]} 15. Rac1 {[%emt 0:32:30]} Qb7 {[%emt 0:07:30]} 16. b5 {[%emt 0:00:00]} O-O {[%emt 0:03:30]} 17. f5 {[%emt 0:00:00]} exf5 {[%emt 0:13:14]} 18. Nc6 {[%emt 0:00:00]} Rfe8 {[%emt 0:00:00]} 19. Nxe7+ {[%emt 0:01:00]} Rxe7 {[%emt 0:03:14]} 20. Bg5 {[%emt 0:19:36]} Re6 {[%emt 0:00:38]} 21. Bxf6 {[%emt 0:00:00]} Rxf6 {[%emt 0:00:32]} 22. Nd5 {[%emt 0:00:00]} Re6 {[%emt 0:00:28]} 23. Qb2 {[%emt 0:00:00]} fxe4 {[%emt 0:06:28]} 24. dxe4 {[%emt 0:00:00]} Rc8 {[%emt 0:04:06]} 25. Qf2 Be8 {[%emt 0:02:55]} 26. Rxc8 {[%emt 0:00:00]} Qxc8 {[%emt 0:00:00]} 27. bxa6 {[%emt 0:00:00]} Re5 {[%emt 0:02:21]} 28. a7 {[%emt 0:17:11]} f5 {[%emt 0:00:21]} 29. Qxb6 {[%emt 0:00:00]} Qc6 {[%emt 0:00:00]} 30. Qd8 {[%emt 0:00:00]} Qa6 {[%emt 0:00:42]} 31. Rc1 {[%emt 0:00:53]} Qxa7 {[%emt 0:00:11]} 32. Nf6+ {[%emt 0:00:00]} Kf8 {[%emt 0:00:00]} 33. Rc7 {[%emt 0:00:00]} Qd4 {[%emt 0:01:16]} 34. h3 {[%emt 0:02:12]} Rxe4 {[%emt 0:00:56]} 35. Nxe4 {[%emt 0:00:00]} Qa1+ {[%emt 0:00:00]} 36. Kh2 {[%emt 0:00:00]} Qe5+ {[%emt 0:00:05]} 37. Ng3 {[%emt 0:01:26]} h5 {[%emt 0:01:21]} 38. Qg5 {[%emt 0:00:00]} h4 {[%emt 0:00:00]} 39. Qh6+ {[%emt 0:00:03]} Kg8 {[%emt 0:00:44]} 40. Qh7+ {[%emt 0:00:43]} Kf8 {[%emt 0:00:00]} 41. Qxh4 {[%emt 0:00:56]} f4 {[%emt 0:01:58]} 42. Ne4 {[%emt 0:09:30]} f3+ {[%emt 0:00:30]} 43. Kg1 {[%emt 0:00:00]} Qd4+ {[%emt 0:29:26]} 44. Qf2 {[%emt 0:02:00]} Qxe4 {[%emt 0:00:00]} 45. Qxf3+ {[%emt 0:00:00]} Qxf3 {[%emt 0:00:00]} 46. gxf3 {[%emt 0:00:00]} Bxa4 {[%emt 0:00:00]} 47. Kf2 {[%emt 0:00:30]} Ke8 {[%emt 0:00:00]} 48. Rg7 {[%emt 0:00:30]} Bc2 {[%emt 0:00:00]} 49. h4 {[%emt 0:00:30]} Bf5 {[%emt 0:00:00]} 50. Ke3 Kf8 {[%emt 0:00:00]} 51. Ra7 {[%emt 0:00:00]} Ke8 {[%emt 0:00:00]} 52. Kf4 {[%emt 0:00:30]} Bd3 {[%emt 0:00:00]} 53. Kg5 {[%emt 0:01:30]} Bc2 {[%emt 0:00:00]} 54. Kf6 {[%emt 0:00:30]} d5 {[%emt 0:00:00]} 55. Ke5 Bd1 {[%emt 0:00:48]} 56. Ke6 {[%emt 0:03:00]} Kd8 {[%emt 0:00:00]} 57. Ra3 {[%emt 0:00:30]} Bc2 {[%emt 0:00:00]} 58. Ra8+ {[%emt 0:00:30]} Kc7 {[%emt 0:00:00]} 59. Kxd5 {[%emt 0:00:00]} Bd1 {[%emt 0:02:00]} 60. Rf8 {[%emt 0:14:29]} Kd7 {[%emt 0:00:15]} 61. Rf7+ {[%emt 0:00:00]} Ke8 {[%emt 0:00:00]} 62. Rf6 {[%emt 0:00:00]} Ke7 {[%emt 0:00:45]} 63. Ke5 {[%emt 0:00:00]} Be2 64. f4 {[%emt 0:00:00]} Bh5 {[%emt 0:02:25]} 65. Ra6 {[%emt 0:03:57]} Kf7 {[%emt 0:00:47]} 66. Ra7+ {[%emt 0:00:00]} Kg8 {[%emt 0:04:36]} 67. Kf6 {[%emt 0:00:00]} Kh8 {[%emt 0:00:00]} 68. Kg5 {[%emt 0:00:00]} 1-0

[Event "41st Arco Open 2019"]
[Site "Arco"]
[Date "2019.10.07"]
[Round "4"]
[White "Medancic, Rikard"]
[Black "Oppici, Gabriele"]
[Result "1-0"]
[ECO "B07"]
[WhiteElo "2146"]
[BlackElo "1942"]
[Annotator "ChessBase"]
[PlyCount "99"]
[EventDate "2019.10.04"]
[EventType "swiss"]
[EventCountry "ITA"]
[SourceTitle "playchess.com"]
[Source "ChessBase"]
[SourceQuality "1"]
[TimeControl "40/5400+30:1800+30"]

1. d4 {[%emt 0:00:30]} d6 {[%emt 0:00:30]} 2. e4 {[%emt 0:00:00]} Nf6 {[%emt 0:00:00]} 3. Nc3 {[%emt 0:00:00]} Nbd7 {[%emt 0:00:00]} 4. d5 {[%emt 0:01:30]} g6 5. Bg5 {[%emt 0:01:30]} Bg7 {[%emt 0:02:00]} 6. Qd2 a6 {[%emt 0:00:30]} 7. Bh6 {[%emt 0:05:00]} O-O {[%emt 0:06:30]} 8. f3 {[%emt 0:06:30]} e6 {[%emt 0:05:30]} 9. dxe6 {[%emt 0:00:30]} fxe6 {[%emt 0:00:30]} 10. O-O-O {[%emt 0:00:30]} Ne5 {[%emt 0:01:30]} 11. Bxg7 {[%emt 0:06:30]} Kxg7 12. f4 {[%emt 0:01:30]} Nc6 {[%emt 0:03:00]} 13. Nf3 Qe7 14. Bd3 {[%emt 0:36:00]} b5 {[%emt 0:14:00]} 15. Rhe1 e5 {[%emt 0:16:30]} 16. Nd5 {[%emt 0:11:00]} Qd8 {[%emt 0:02:30]} 17. Qc3 {[%emt 0:01:30]} Bb7 {[%emt 0:04:30]} 18. fxe5 {[%emt 0:04:30]} dxe5 19. Nxe5 {[%emt 0:05:51]} Nxd5 {[%emt 0:08:00]} 20. exd5 Nxe5 {[%emt 0:03:30]} 21. Rxe5 {[%emt 0:00:37]} Kg8 {[%emt 0:18:43]} 22. Be4 {[%emt 0:04:45]} Qd6 {[%emt 0:00:00]} 23. Bf3 {[%emt 0:00:00]} Rae8 {[%emt 0:00:00]} 24. Rde1 {[%emt 0:01:45]} Rxe5 25. Rxe5 {[%emt 0:00:19]} Bc8 {[%emt 0:00:00]} 26. h4 {[%emt 0:02:26]} Bf5 {[%emt 0:00:00]} 27. Qe3 {[%emt 0:01:32]} Qb4 {[%emt 0:00:00]} 28. b3 Qxh4 {[%emt 0:00:00]} 29. Re7 {[%emt 0:06:19]} Rf7 30. d6 {[%emt 0:00:23]} Kf8 {[%emt 0:02:37]} 31. Rxf7+ Kxf7 {[%emt 0:00:02]} 32. dxc7 {[%emt 0:02:13]} Qf6 33. Qc5 {[%emt 0:01:16]} Bc8 {[%emt 0:00:00]} 34. Qd5+ Kg7 {[%emt 0:10:24]} 35. Qd8 {[%emt 0:00:58]} Qe6 {[%emt 0:05:08]} 36. Bd5 {[%emt 0:01:00]} Qe1+ {[%emt 0:00:00]} 37. Kb2 {[%emt 0:00:00]} Qe5+ {[%emt 0:00:00]} 38. Ka3 {[%emt 0:00:34]} Qf5 {[%emt 0:01:27]} 39. Qe7+ {[%emt 0:00:53]} Kh6 {[%emt 0:00:00]} 40. Bg8 {[%emt 0:00:29]} g5 {[%emt 0:00:59]} 41. Bxh7 {[%emt 0:01:10]} Qxh7 {[%emt 0:04:10]} 42. Qf8+ {[%emt 0:00:30]} Kh5 {[%emt 0:03:30]} 43. Qxc8 {[%emt 0:00:00]} Qe7+ 44. Kb2 {[%emt 0:00:00]} Qe5+ {[%emt 0:21:16]} 45. c3 {[%emt 0:07:30]} Qe2+ {[%emt 0:00:00]} 46. Ka3 {[%emt 0:00:00]} Qe7+ 47. b4 {[%emt 0:00:00]} Qe1 {[%emt 0:01:44]} 48. Qh3+ {[%emt 0:00:00]} Kg6 {[%emt 0:00:00]} 49. Qd3+ {[%emt 0:00:00]} Kh6 {[%emt 0:02:51]} 50. c8=Q {[%emt 0:00:00]} 1-0

[Event "41st Arco Open 2019"]
[Site "Arco"]
[Date "2019.10.07"]
[Round "4"]
[White "Perman, Sergey"]
[Black "Sedina, Elena"]
[Result "0-1"]
[ECO "C17"]
[WhiteElo "2129"]
[BlackElo "2294"]
[Annotator "ChessBase"]
[PlyCount "142"]
[EventDate "2019.10.04"]
[EventType "swiss"]
[EventCountry "ITA"]
[SourceTitle "playchess.com"]
[Source "ChessBase"]
[SourceQuality "1"]
[TimeControl "40/5400+30:1800+30"]

1. e4 {[%emt 0:00:30]} e6 {[%emt 0:04:30]} 2. d4 {[%emt 0:00:00]} d5 {[%emt 0:00:00]} 3. Nc3 {[%emt 0:00:00]} Bb4 {[%emt 0:01:00]} 4. e5 {[%emt 0:00:30]} c5 5. Bd2 {[%emt 0:00:30]} Ne7 {[%emt 0:04:00]} 6. Nb5 Bxd2+ {[%emt 0:00:30]} 7. Qxd2 {[%emt 0:01:00]} O-O {[%emt 0:00:30]} 8. dxc5 Bd7 {[%emt 0:20:30]} 9. Nd4 {[%emt 0:21:00]} Ng6 {[%emt 0:19:30]} 10. Ngf3 {[%emt 0:14:30]} Qc7 {[%emt 0:08:30]} 11. Qg5 {[%emt 0:20:30]} f6 12. exf6 {[%emt 0:00:00]} Rxf6 {[%emt 0:10:00]} 13. Bd3 {[%emt 0:29:02]} h6 {[%emt 0:18:32]} 14. Qe3 {[%emt 0:00:00]} e5 {[%emt 0:03:12]} 15. Bxg6 {[%emt 0:00:00]} exd4 {[%emt 0:00:02]} 16. Qd3 {[%emt 0:00:00]} Na6 17. Nh4 {[%emt 0:04:27]} Nxc5 {[%emt 0:07:03]} 18. Qg3 Re6+ {[%emt 0:00:36]} 19. Kf1 {[%emt 0:00:54]} Bb5+ 20. Kg1 {[%emt 0:00:07]} Qxg3 {[%emt 0:00:26]} 21. hxg3 d3 {[%emt 0:00:35]} 22. a4 {[%emt 0:00:18]} dxc2 {[%emt 0:00:00]} 23. Bxc2 {[%emt 0:02:17]} Bd3 {[%emt 0:01:01]} 24. Bd1 {[%emt 0:05:36]} Re1+ {[%emt 0:00:44]} 25. Kh2 {[%emt 0:00:00]} Rae8 {[%emt 0:00:00]} 26. Rxe1 {[%emt 0:00:00]} Rxe1 {[%emt 0:00:12]} 27. Nf3 {[%emt 0:00:38]} Rf1 {[%emt 0:00:26]} 28. Rc1 {[%emt 0:00:00]} Ne4 {[%emt 0:00:00]} 29. Rc8+ {[%emt 0:00:00]} Kh7 {[%emt 0:01:02]} 30. Bb3 {[%emt 0:01:37]} Nxf2 {[%emt 0:00:35]} 31. g4 {[%emt 0:00:00]} Nxg4+ {[%emt 0:00:00]} 32. Kg3 {[%emt 0:00:00]} Nf6 {[%emt 0:00:53]} 33. Bc2 {[%emt 0:02:15]} Ne4+ {[%emt 0:00:00]} 34. Kf4 {[%emt 0:00:00]} Bxc2 {[%emt 0:00:00]} 35. Rxc2 {[%emt 0:00:00]} Ra1 {[%emt 0:02:17]} 36. b3 {[%emt 0:01:14]} Rb1 {[%emt 0:00:19]} 37. Nd4 {[%emt 0:00:00]} b6 {[%emt 0:00:00]} 38. Rc7 {[%emt 0:00:00]} Nc5 {[%emt 0:01:21]} 39. Rxa7 {[%emt 0:01:56]} Re1 {[%emt 0:00:25]} 40. Nf5 {[%emt 0:00:00]} Ne6+ {[%emt 0:00:00]} 41. Kg3 {[%emt 0:00:39]} Re5 {[%emt 0:01:49]} 42. Nh4 {[%emt 0:10:30]} Re3+ {[%emt 0:00:30]} 43. Kf2 {[%emt 0:01:30]} Rxb3 {[%emt 0:01:30]} 44. Re7 Nc5 {[%emt 0:28:46]} 45. Nf5 {[%emt 0:03:47]} Kg6 {[%emt 0:00:00]} 46. g4 {[%emt 0:01:47]} Kf6 {[%emt 0:00:00]} 47. Rxg7 {[%emt 0:09:13]} Ne4+ {[%emt 0:00:00]} 48. Kg2 {[%emt 0:00:00]} Rb2+ {[%emt 0:00:00]} 49. Kg1 {[%emt 0:00:00]} Rb1+ {[%emt 0:02:09]} 50. Kg2 {[%emt 0:05:59]} Rb2+ {[%emt 0:00:00]} 51. Kg1 {[%emt 0:00:00]} Nd6 {[%emt 0:00:00]} 52. Rd7 {[%emt 0:00:00]} Nxf5 {[%emt 0:01:00]} 53. gxf5 {[%emt 0:03:13]} Rd2 {[%emt 0:01:04]} 54. Rd6+ {[%emt 0:00:00]} Kxf5 {[%emt 0:00:00]} 55. Rxb6 {[%emt 0:00:00]} h5 {[%emt 0:00:25]} 56. a5 {[%emt 0:00:38]} Ra2 {[%emt 0:00:13]} 57. a6 {[%emt 0:00:00]} Ke4 {[%emt 0:00:00]} 58. Rh6 {[%emt 0:00:00]} d4 {[%emt 0:01:07]} 59. Rxh5 {[%emt 0:01:23]} Rxa6 {[%emt 0:00:16]} 60. Kf2 {[%emt 0:00:00]} Kd3 {[%emt 0:00:00]} 61. Ke1 {[%emt 0:00:00]} Ra1+ {[%emt 0:02:06]} 62. Kf2 {[%emt 0:01:00]} Kd2 {[%emt 0:00:00]} 63. Rh8 {[%emt 0:00:00]} d3 {[%emt 0:00:50]} 64. Rf8 {[%emt 0:00:00]} Kc2 {[%emt 0:00:00]} 65. Rc8+ {[%emt 0:01:37]} Kd1 {[%emt 0:00:00]} 66. Rg8 {[%emt 0:00:00]} Ra7 {[%emt 0:00:00]} 67. Ke3 {[%emt 0:00:42]} d2 {[%emt 0:01:08]} 68. Kf2 {[%emt 0:00:58]} Rf7+ {[%emt 0:00:13]} 69. Ke3 {[%emt 0:00:39]} Re7+ {[%emt 0:00:15]} 70. Kf2 {[%emt 0:00:06]} Rd7 {[%emt 0:01:22]} 71. Rh8 {[%emt 0:01:12]} Kc2 {[%emt 0:00:00]} 0-1

[Event "41st Arco Open 2019"]
[Site "Arco"]
[Date "2019.10.07"]
[Round "4"]
[White "Geisshirt, Marco"]
[Black "Horvath, Jozsef"]
[Result "0-1"]
[ECO "A04"]
[WhiteElo "2025"]
[BlackElo "2450"]
[Annotator "ChessBase"]
[PlyCount "50"]
[EventDate "2019.10.04"]
[EventType "swiss"]
[EventCountry "ITA"]
[SourceTitle "playchess.com"]
[Source "ChessBase"]
[SourceQuality "1"]
[TimeControl "40/5400+30:1800+30"]

1. g3 {[%emt 0:00:30]} g6 {[%emt 0:02:30]} 2. Bg2 {[%emt 0:00:00]} Bg7 {[%emt 0:00:00]} 3. Nf3 {[%emt 0:00:00]} d6 {[%emt 0:02:00]} 4. O-O {[%emt 0:00:30]} e5 5. e4 {[%emt 0:04:30]} Nc6 {[%emt 0:05:00]} 6. c3 {[%emt 0:00:30]} Nge7 {[%emt 0:00:30]} 7. d4 {[%emt 0:00:00]} exd4 {[%emt 0:01:30]} 8. cxd4 Bg4 {[%emt 0:01:30]} 9. Be3 {[%emt 0:10:30]} Qd7 {[%emt 0:10:30]} 10. Qd2 {[%emt 0:07:30]} O-O {[%emt 0:20:30]} 11. Nc3 {[%emt 0:00:30]} f5 {[%emt 0:00:00]} 12. d5 {[%emt 0:07:30]} Na5 {[%emt 0:05:00]} 13. b3 {[%emt 0:22:30]} fxe4 {[%emt 0:02:30]} 14. Nd4 {[%emt 0:00:30]} c5 {[%emt 0:17:30]} 15. Nde2 {[%emt 0:20:30]} b6 {[%emt 0:06:30]} 16. Rae1 {[%emt 0:00:00]} Bf3 {[%emt 0:02:56]} 17. Nxe4 {[%emt 0:00:00]} Bxg2 {[%emt 0:01:28]} 18. Kxg2 {[%emt 0:00:00]} Qf5 19. N2c3 {[%emt 0:00:00]} Qf3+ {[%emt 0:04:08]} 20. Kg1 Nb7 {[%emt 0:04:43]} 21. Ng5 {[%emt 0:00:00]} Bxc3 {[%emt 0:00:00]} 22. Qxc3 {[%emt 0:00:30]} Qxd5 {[%emt 0:03:41]} 23. Bf4 {[%emt 0:17:20]} Nf5 {[%emt 0:00:54]} 24. Rd1 {[%emt 0:00:00]} Nd4 {[%emt 0:01:30]} 25. Be3 {[%emt 0:00:00]} Ne2# {[%emt 0:00:30]} 0-1

[Event "41st Arco Open 2019"]
[Site "Arco"]
[Date "2019.10.07"]
[Round "4"]
[White "von Wantoch, Markus"]
[Black "Glienke, Manfred"]
[Result "1/2-1/2"]
[ECO "B02"]
[WhiteElo "1972"]
[BlackElo "2235"]
[Annotator "ChessBase"]
[PlyCount "152"]
[EventDate "2019.10.04"]
[EventType "swiss"]
[EventCountry "ITA"]
[SourceTitle "playchess.com"]
[Source "ChessBase"]
[SourceQuality "1"]
[TimeControl "40/5400+30:1800+30"]

1. e4 {[%emt 0:00:30]} Nf6 {[%emt 0:00:30]} 2. Nc3 {[%emt 0:00:30]} d5 {[%emt 0:00:30]} 3. exd5 {[%emt 0:00:30]} Nxd5 {[%emt 0:00:00]} 4. Bc4 {[%emt 0:02:30]} e6 {[%emt 0:01:00]} 5. Qf3 {[%emt 0:05:30]} Nf6 {[%emt 0:00:30]} 6. Nge2 {[%emt 0:00:00]} Nc6 {[%emt 0:03:30]} 7. Bb5 {[%emt 0:09:00]} Bd7 {[%emt 0:00:30]} 8. O-O {[%emt 0:01:30]} a6 {[%emt 0:00:30]} 9. Ba4 {[%emt 0:01:30]} b5 {[%emt 0:01:30]} 10. Bb3 {[%emt 0:00:30]} Ne5 {[%emt 0:05:30]} 11. Qg3 {[%emt 0:05:30]} Bd6 12. d4 {[%emt 0:04:30]} Ng6 {[%emt 0:06:00]} 13. Qf3 O-O {[%emt 0:00:30]} 14. Bg5 {[%emt 0:10:00]} h6 {[%emt 0:04:30]} 15. Bxf6 Qxf6 {[%emt 0:00:30]} 16. Qxf6 {[%emt 0:00:00]} gxf6 17. Ne4 {[%emt 0:01:30]} Be7 {[%emt 0:02:00]} 18. f4 {[%emt 0:06:30]} f5 19. Nc5 {[%emt 0:02:30]} Bc6 {[%emt 0:04:00]} 20. c3 Rfd8 {[%emt 0:00:30]} 21. Rad1 {[%emt 0:08:00]} Nh4 {[%emt 0:07:30]} 22. Rf2 a5 {[%emt 0:01:30]} 23. Nd3 {[%emt 0:06:00]} a4 {[%emt 0:01:30]} 24. Bc2 {[%emt 0:00:30]} a3 {[%emt 0:02:30]} 25. b3 {[%emt 0:02:30]} Be4 {[%emt 0:25:30]} 26. Ng3 {[%emt 0:01:30]} Bxd3 {[%emt 0:00:00]} 27. Rxd3 {[%emt 0:03:30]} c5 {[%emt 0:00:00]} 28. Rfd2 {[%emt 0:01:30]} cxd4 {[%emt 0:00:00]} 29. cxd4 Bb4 {[%emt 0:00:00]} 30. Rd1 {[%emt 0:04:00]} Rac8 {[%emt 0:00:00]} 31. Bb1 {[%emt 0:00:30]} Ng6 {[%emt 0:00:00]} 32. Ne2 {[%emt 0:00:00]} Ne7 33. Rg3+ {[%emt 0:03:00]} Kf8 {[%emt 0:00:00]} 34. Rh3 {[%emt 0:00:00]} Kg7 {[%emt 0:00:00]} 35. Rg3+ {[%emt 0:05:48]} Kf6 {[%emt 0:00:00]} 36. Rh3 {[%emt 0:00:30]} Rh8 {[%emt 0:00:00]} 37. Rc1 {[%emt 0:06:45]} Rxc1+ 38. Nxc1 {[%emt 0:00:03]} Nd5 {[%emt 0:00:00]} 39. Ne2 {[%emt 0:00:00]} Bd2 {[%emt 0:00:00]} 40. Bd3 {[%emt 0:11:57]} b4 {[%emt 0:00:00]} 41. Rf3 {[%emt 0:02:57]} Rc8 {[%emt 0:00:00]} 42. Bb1 {[%emt 0:05:30]} Bc3 43. Kf2 {[%emt 0:03:30]} Bb2 {[%emt 0:03:00]} 44. Rh3 {[%emt 0:00:00]} Ke7 {[%emt 0:02:30]} 45. Rf3 {[%emt 0:08:02]} Nf6 {[%emt 0:00:00]} 46. Ke1 {[%emt 0:00:30]} Bxd4 {[%emt 0:05:00]} 47. Nxd4 {[%emt 0:06:19]} Rc1+ 48. Ke2 {[%emt 0:01:05]} Rxb1 {[%emt 0:00:00]} 49. Nc6+ {[%emt 0:00:00]} Kf8 {[%emt 0:12:30]} 50. Nxb4 {[%emt 0:00:11]} Rb2+ 51. Kf1 {[%emt 0:00:21]} Ne4 {[%emt 0:00:00]} 52. Rh3 {[%emt 0:02:15]} h5 {[%emt 0:00:00]} 53. Rxh5 {[%emt 0:00:33]} Nd2+ {[%emt 0:00:00]} 54. Kg1 Nxb3 {[%emt 0:00:00]} 55. axb3 {[%emt 0:01:45]} Rxb3 {[%emt 0:51:01]} 56. Nc2 {[%emt 0:03:30]} Rb1+ {[%emt 0:00:00]} 57. Kf2 {[%emt 0:00:00]} Rb2 58. Rh8+ {[%emt 0:00:12]} Kg7 {[%emt 0:00:00]} 59. Ra8 {[%emt 0:00:29]} Rxc2+ {[%emt 0:00:00]} 60. Kf3 {[%emt 0:00:39]} a2 {[%emt 0:00:00]} 61. Kg3 {[%emt 0:00:17]} f6 {[%emt 0:00:00]} 62. Ra7+ {[%emt 0:00:00]} Kg6 {[%emt 0:00:00]} 63. Ra8 {[%emt 0:00:18]} e5 {[%emt 0:00:00]} 64. fxe5 {[%emt 0:02:40]} fxe5 {[%emt 0:00:00]} 65. Ra6+ {[%emt 0:00:13]} Kg5 {[%emt 0:00:00]} 66. Ra8 {[%emt 0:01:38]} e4 {[%emt 0:00:00]} 67. h4+ Kf6 {[%emt 0:00:00]} 68. Ra6+ {[%emt 0:00:30]} Ke5 {[%emt 0:07:19]} 69. Ra5+ {[%emt 0:00:23]} Kd4 {[%emt 0:00:00]} 70. h5 {[%emt 0:00:00]} Kc3 {[%emt 0:00:00]} 71. h6 {[%emt 0:01:18]} Kb2 {[%emt 0:00:00]} 72. Rb5+ {[%emt 0:00:41]} Kc1 {[%emt 0:00:00]} 73. Ra5 {[%emt 0:00:10]} e3 {[%emt 0:00:00]} 74. h7 {[%emt 0:00:10]} e2 {[%emt 0:00:00]} 75. Kf2 {[%emt 0:00:00]} Kd1 {[%emt 0:00:00]} 76. h8=Q {[%emt 0:01:19]} e1=Q+ {[%emt 0:00:00]} 1/2-1/2